bitfinex-derivatives/quotes_BTCF0:USTF0_20210105
["timestamp","ask_amount","ask_price","bid_price","bid_amount"]
[1609850687689,0.13632608,31728.0,31727.0,3.9142]
[1609850689689,0.10512,31741.0,31726.0,0.13632608]
[1609850689888,0.10512,31741.0,31733.0,4.9577]
[1609850690090,0.00390891,31754.0,31733.0,4.9577]
[1609850690289,0.00390891,31754.0,31728.0,0.11622]
[1609850690490,0.01340927,31763.0,31744.0,4.1729]
[1609850690691,0.01340927,31763.0,31744.0,4.6601]
[1609850690888,0.01340927,31763.0,31738.0,0.14755]
[1609850691292,4.2126,31765.0,31739.0,3.9273]
[1609850691490,0.13632608,31755.0,31753.0,0.13632608]
[1609850692792,0.13632608,31755.0,31754.0,4.6761]
[1609850693593,0.1408,31758.0,31754.0,4.6761]
[1609850693792,0.2849,31767.0,31754.0,4.6761]
[1609850694894,0.00391632,31780.0,31754.0,4.6761]
[1609850695094,0.00391632,31780.0,31753.0,0.13632608]
[1609850695293,4.4,31773.0,31753.0,0.13632608]
[1609850695494,4.54331,31773.0,31761.0,0.13632608]
[1609850695695,4.54331,31773.0,31749.0,5.038]
[1609850697398,4.54331,31773.0,31757.0,0.13632608]
[1609850697601,0.14331,31773.0,31757.0,0.13632608]
[1609850698000,0.14331,31773.0,31757.0,4.86652608]
[1609850698401,0.14331,31773.0,31757.0,0.13632608]
[1609850698600,0.14331,31773.0,31767.0,3.5462]
[1609850699401,0.14331,31773.0,31772.0,0.13632608]
[1609850699605,0.14331,31773.0,31772.0,0.65022608]
[1609850700604,0.13632608,31776.0,31772.0,0.65022608]
[1609850702005,0.13632608,31776.0,31772.0,0.5139]
[1609850705416,0.13632608,31776.0,31772.0,0.65022608]
[1609850707418,0.13632608,31776.0,31772.0,0.13632608]
[1609850707617,0.13917,31781.0,31780.0,4.0837]
[1609850708418,0.01341467,31796.0,31780.0,4.0837]
[1609850709218,0.2727,31797.0,31780.0,4.0837]
[1609850709417,0.2727,31797.0,31795.0,0.13632608]
[1609850709618,0.2727,31797.0,31769.0,0.14754]
[1609850709818,0.37506,31797.0,31783.0,4.9932]
[1609850710422,0.37506,31797.0,31772.0,0.0946]
[1609850710620,0.37506,31797.0,31777.0,4.961]
[1609850711424,0.13632608,31788.0,31784.0,0.13632608]
[1609850713826,0.13632608,31788.0,31771.0,3.9535]
[1609850714026,0.13632608,31788.0,31771.0,4.07496]
[1609850715531,5.18145,31790.0,31779.0,0.13632608]
[1609850717431,0.13632608,31780.0,31769.0,0.13632608]
[1609850717631,0.13632608,31780.0,31762.0,0.14185]
[1609850717831,0.27878608,31780.0,31754.0,5.2127]
[1609850718230,4.1199,31767.0,31743.0,5.0531]
[1609850718631,4.26588,31767.0,31743.0,5.0531]
[1609850719432,4.26588,31767.0,31755.0,0.13632608]
[1609850721434,0.13632608,31756.0,31755.0,0.13632608]
[1609850723035,0.11966,31758.0,31755.0,0.13632608]
[1609850723435,0.13632608,31756.0,31755.0,0.13632608]
[1609850724337,0.13632608,31756.0,31743.0,0.10036]
[1609850724736,0.13632608,31756.0,31727.0,2.37541303]
[1609850724937,0.13632608,31756.0,31727.0,2.08391303]
[1609850725337,4.3358,31743.0,31727.0,2.08391303]
[1609850725537,0.13632608,31728.0,31727.0,2.22023911]
[1609850726537,4.6727,31731.0,31727.0,2.22023911]
[1609850727341,4.6727,31731.0,31727.0,2.08391303]
[1609850727541,0.13632608,31728.0,31727.0,2.08391303]
[1609850731546,0.13632608,31728.0,31727.0,2.22023911]
[1609850732445,0.2914,31746.0,31727.0,2.22023911]
[1609850733446,0.2914,31746.0,31741.0,0.13632608]
[1609850734746,0.2914,31746.0,31740.0,4.6546]
[1609850735548,0.13632608,31743.0,31740.0,4.79092608]
[1609850735950,0.2914,31746.0,31740.0,4.79092608]
[1609850736150,0.2914,31746.0,31740.0,0.13632608]
[1609850736552,4.3173,31744.0,31740.0,0.13632608]
[1609850737351,0.2914,31746.0,31740.0,0.13632608]
[1609850737549,0.13632608,31744.0,31740.0,0.13632608]
[1609850740754,0.13632608,31744.0,31735.0,5.0128]
[1609850741555,0.13632608,31736.0,31735.0,5.0128]
[1609850743766,5.0463,31759.0,31735.0,5.0128]
[1609850745561,5.0463,31759.0,31742.0,0.13632608]
[1609850747560,0.13632608,31743.0,31742.0,0.13632608]
[1609850749664,0.13632608,31743.0,31742.0,0.85112608]
[1609850750664,0.12743,31755.0,31742.0,0.85112608]
[1609850751264,0.2882,31765.0,31742.0,0.85112608]
[1609850751265,0.2882,31765.0,31742.0,0.13632608]
[1609850751465,0.2882,31765.0,31755.0,4.3347]
[1609850751665,0.2882,31765.0,31764.0,0.6896]
[1609850752068,0.14598,31767.0,31764.0,0.6896]
[1609850752266,0.01360192,31770.0,31764.0,0.6896]
[1609850753168,0.01910103,31775.0,31764.0,0.6896]
[1609850753670,0.13632608,31765.0,31764.0,0.6896]
[1609850754068,0.13632608,31765.0,31760.0,0.13632608]
[1609850754674,0.13632608,31765.0,31746.0,0.11852]
[1609850755276,0.13632608,31765.0,31738.0,0.10288]
[1609850755472,0.13632608,31765.0,31751.0,4.4764]
[1609850755674,0.13632608,31753.0,31751.0,4.61272608]
[1609850756774,0.13766,31766.0,31751.0,4.61272608]
[1609850757574,0.13766,31766.0,31762.0,0.13632608]
[1609850758775,0.76661019,31780.0,31762.0,0.13632608]
[1609850759077,0.0192015,31779.0,31762.0,0.13632608]
[1609850759376,0.1307015,31779.0,31762.0,0.13632608]
[1609850759580,0.13632608,31763.0,31762.0,0.13632608]
[1609850760582,0.13632608,31763.0,31751.0,4.4764]
[1609850760783,0.13632608,31763.0,31747.0,0.14438]
[1609850761682,0.11059,31767.0,31755.0,0.13632608]
[1609850763685,0.13632608,31756.0,31755.0,0.13632608]
[1609850764588,0.12339,31760.0,31755.0,0.13632608]
[1609850765590,0.12339,31760.0,31759.0,0.13632608]
[1609850767693,0.25971608,31760.0,31759.0,0.13632608]
[1609850770500,0.25971608,31760.0,31759.0,3.94262608]
[1609850772901,0.25971608,31760.0,31759.0,0.13632608]
[1609850775606,0.12339,31760.0,31759.0,5.15172608]
[1609850776006,0.11059,31767.0,31759.0,5.15172608]
[1609850776204,0.58824773,31777.0,31759.0,5.15172608]
[1609850776607,0.70000466,31779.0,31759.0,0.13632608]
[1609850776805,0.70000466,31779.0,31772.0,4.0992]
[1609850777809,0.24782608,31779.0,31778.0,0.86602608]
[1609850778507,0.24782608,31779.0,31778.0,0.13632608]
[1609850780711,0.24782608,31779.0,31778.0,4.90962608]
[1609850781009,0.24782608,31779.0,31778.0,4.7733]
[1609850781310,0.1115,31779.0,31778.0,4.7733]
[1609850781711,0.13632608,31779.0,31778.0,4.7733]
[1609850784113,0.13632608,31779.0,31776.0,0.13632608]
[1609850786815,0.10546,31783.0,31776.0,0.13632608]
[1609850787017,0.01913728,31795.0,31776.0,0.13632608]
[1609850787218,0.01914426,31796.0,31783.0,4.5923]
[1609850787818,0.01914426,31796.0,31785.0,0.13632608]
[1609850788018,0.01914939,31797.0,31785.0,0.13632608]
[1609850788919,0.0190731,31798.0,31785.0,0.13632608]
[1609850789520,0.58568794,31801.0,31785.0,0.13632608]
[1609850789719,0.13632608,31786.0,31785.0,0.13632608]
[1609850792426,0.13445,31792.0,31785.0,0.13632608]
[1609850793729,0.13632608,31789.0,31785.0,0.13632608]
[1609850795632,0.13632608,31789.0,31788.0,4.3]
[1609850797934,0.13632608,31789.0,31785.0,0.13632608]
[1609850800435,0.13445,31792.0,31785.0,0.13632608]
[1609850800838,0.2907,31802.0,31792.0,4.197]
[1609850801440,0.01909794,31803.0,31792.0,4.197]
[1609850801640,0.01902373,31806.0,31792.0,4.197]
[1609850801840,0.01902373,31806.0,31805.0,0.13632608]
[1609850802039,0.01902373,31806.0,31805.0,4.12592608]
[1609850803439,0.01902373,31806.0,31805.0,0.13632608]
[1609850803840,0.15534981,31806.0,31805.0,0.13632608]
[1609850804141,0.13632608,31806.0,31805.0,0.13632608]
[1609850804541,0.01907228,31815.0,31805.0,0.13632608]
[1609850804943,0.58695213,31823.0,31805.0,0.13632608]
[1609850805746,0.13632608,31814.0,31813.0,0.13632608]
[1609850807445,0.14037,31818.0,31813.0,0.13632608]
[1609850807848,0.14037,31818.0,31817.0,0.13632608]
[1609850808046,0.14037,31818.0,31817.0,0.69972608]
[1609850810949,0.13632608,31821.0,31817.0,0.69972608]
[1609850825565,0.13632608,31821.0,31817.0,0.13632608]
[1609850825764,0.2887,31826.0,31820.0,4.2369]
[1609850825966,0.13632608,31826.0,31820.0,4.2369]
[1609850826165,0.1771,31844.0,31820.0,4.2369]
[1609850826166,0.2731,31843.0,31820.0,4.2369]
[1609850827067,0.39473,31843.0,31831.0,4.0054]
[1609850827869,0.39473,31843.0,31842.0,0.13632608]
[1609850828267,0.12163,31843.0,31842.0,0.13632608]
[1609850832172,0.13632608,31844.0,31842.0,0.13632608]
[1609850834471,0.292,31854.0,31842.0,0.71922608]
[1609850834672,0.292,31854.0,31842.0,0.13632608]
[1609850835073,0.292,31854.0,31844.0,4.4155]
[1609850835875,0.1771,31858.0,31853.0,0.13632608]
[1609850836076,0.1771,31858.0,31857.0,4.8279]
[1609850836276,0.13632608,31859.0,31857.0,4.8279]
[1609850836673,0.2993,31868.0,31857.0,4.8279]
[1609850836875,0.2993,31868.0,31853.0,0.13632608]
[1609850837075,0.41786,31868.0,31866.0,3.5946]
[1609850837274,0.11856,31868.0,31866.0,3.5946]
[1609850837876,0.11856,31868.0,31867.0,0.13632608]
[1609850840277,0.01899484,31886.0,31867.0,0.13632608]
[1609850840878,0.01899484,31886.0,31876.0,4.9989]
[1609850841079,0.1771,31887.0,31876.0,4.9989]
[1609850841479,0.1771,31887.0,31867.0,0.13632608]
[1609850841679,0.09429,31887.0,31867.0,0.13632608]
[1609850841880,0.09429,31887.0,31882.0,0.13632608]
[1609850843884,0.13632608,31883.0,31882.0,0.13632608]
[1609850844884,0.13632608,31883.0,31870.0,4.2484]
[1609850845285,0.13632608,31883.0,31860.0,0.09617]
[1609850845487,4.0447,31882.0,31858.0,5.1928]
[1609850845886,0.13632608,31862.0,31860.0,0.13632608]
[1609850848489,0.09603,31864.0,31860.0,0.13632608]
[1609850851094,0.13632608,31868.0,31860.0,0.13632608]
[1609850851696,0.13632608,31868.0,31866.0,3.6946]
[1609850851995,0.13632608,31868.0,31867.0,0.13632608]
[1609850860205,5.3062,31886.0,31867.0,0.13632608]
[1609850860405,0.2873,31886.0,31867.0,0.13632608]
[1609850860606,0.2873,31886.0,31869.0,3.7052]
[1609850860806,0.2873,31886.0,31867.0,0.13632608]
[1609850861407,0.2873,31886.0,31860.0,4.5008]
[1609850861810,0.2873,31886.0,31853.0,0.1481]
[1609850862006,0.2873,31886.0,31868.0,0.13632608]
[1609850862607,0.2873,31886.0,31865.0,3.586]
[1609850863909,0.13632608,31877.0,31875.0,0.13632608]
[1609850864109,0.24353608,31877.0,31875.0,0.13632608]
[1609850865815,0.24353608,31877.0,31864.0,4.6198]
[1609850866015,0.10721,31877.0,31873.0,0.13632608]
[1609850866615,0.10721,31877.0,31872.0,4.1979]
[1609850867918,0.10721,31877.0,31873.0,0.13632608]
[1609850868617,0.10721,31877.0,31872.0,4.1979]
[1609850869218,0.10723,31877.0,31872.0,4.1979]
[1609850869922,0.24355608,31877.0,31875.0,0.13632608]
[1609850875927,0.10723,31877.0,31875.0,0.13632608]
[1609850876127,0.09429,31887.0,31875.0,0.13632608]
[1609850876327,0.09429,31887.0,31882.0,5.1697]
[1609850876527,0.01905799,31896.0,31882.0,5.1697]
[1609850876727,0.2779,31913.0,31882.0,5.1697]
[1609850876728,0.01905203,31898.0,31882.0,5.1697]
[1609850877428,0.01905052,31908.0,31876.0,0.20939]
[1609850877827,0.01905052,31908.0,31891.0,4.4321]
[1609850878030,0.01905052,31908.0,31904.0,0.13632608]
[1609850878229,0.01907854,31911.0,31906.0,0.5816]
[1609850878928,0.58595565,31912.0,31906.0,0.5816]
[1609850879529,0.2779,31913.0,31906.0,0.5816]
[1609850879929,0.13632608,31907.0,31906.0,0.5816]
[1609850880329,0.27372608,31907.0,31906.0,0.5816]
[1609850880929,0.27372608,31907.0,31883.0,0.0937]
[1609850881130,0.27372608,31907.0,31827.0,0.1771]
[1609850881329,0.27372608,31907.0,31877.0,4.1327]
[1609850881930,0.13632608,31897.0,31896.0,0.13632608]
[1609850882130,0.28492608,31897.0,31896.0,0.13632608]
[1609850882830,0.28492608,31897.0,31896.0,4.13882608]
[1609850883231,0.1486,31897.0,31896.0,4.13882608]
[1609850883933,0.1486,31897.0,31896.0,4.13838049]
[1609850885235,0.1486,31897.0,31896.0,0.13588049]
[1609850886136,0.28492608,31897.0,31876.0,0.11499]
[1609850886336,3.84232608,31897.0,31874.0,4.8582]
[1609850886537,0.1771,31896.0,31874.0,4.8582]
[1609850887537,0.1771,31896.0,31861.0,2.00838665]
[1609850887737,3.86849,31885.0,31861.0,2.00838665]
[1609850887938,3.86849,31885.0,31848.0,4.3441]
[1609850887939,0.14979,31885.0,31856.0,2.01310534]
[1609850888139,0.13632608,31869.0,31868.0,0.13632608]
[1609850888339,0.24139608,31869.0,31868.0,0.67472608]
[1609850888739,0.24139608,31869.0,31868.0,0.5384]
[1609850889940,0.24139608,31869.0,31842.0,0.0943]
[1609850890141,0.24139608,31869.0,31865.0,0.13632608]
[1609850890341,0.24139608,31869.0,31845.0,4.4748]
[1609850890543,0.24139608,31869.0,31844.0,0.09859]
[1609850890942,4.13219,31861.0,31844.0,0.09859]
[1609850891742,4.13219,31861.0,31842.0,2.03744987]
[1609850892144,0.13632608,31855.0,31850.0,0.13632608]
[1609850892342,0.6191,31854.0,31850.0,0.13632608]
[1609850892543,0.13632608,31855.0,31850.0,0.13632608]
[1609850892942,3.7399,31851.0,31850.0,0.13632608]
[1609850893142,3.7399,31851.0,31842.0,2.03744987]
[1609850893544,3.7399,31851.0,31841.0,2.0393992]
[1609850894145,3.7399,31851.0,31845.0,0.13632608]
[1609850894747,3.7399,31851.0,31837.0,0.11096]
[1609850895748,3.84082,31851.0,31837.0,0.11096]
[1609850895949,3.84082,31851.0,31832.0,2.05411531]
[1609850896150,0.13632608,31838.0,31832.0,0.13632608]
[1609850897952,0.14492,31844.0,31832.0,0.13632608]
[1609850898151,0.28124608,31844.0,31837.0,0.13632608]
[1609850898654,0.94954608,31844.0,31837.0,0.13632608]
[1609850898854,5.0368,31840.0,31837.0,0.13632608]
[1609850902058,5.17312608,31840.0,31837.0,0.13632608]
[1609850903358,0.14492,31844.0,31837.0,0.13632608]
[1609850903557,0.2958,31850.0,31837.0,0.13632608]
[1609850904057,0.13632608,31845.0,31843.0,0.13632608]
[1609850908963,3.5475,31844.0,31843.0,0.13632608]
[1609850909161,3.6488,31844.0,31843.0,0.13632608]
[1609850909862,3.6488,31844.0,31827.0,4.6914]
[1609850912266,0.13632608,31839.0,31837.0,0.13632608]
[1609850912864,3.6488,31844.0,31837.0,0.13632608]
[1609850913865,0.1013,31844.0,31837.0,0.13632608]
[1609850914267,0.13632608,31843.0,31842.0,0.13632608]
[1609850914467,0.27988608,31843.0,31842.0,0.13632608]
[1609850916773,0.14356,31843.0,31842.0,0.13632608]
[1609850919576,0.13632608,31847.0,31842.0,0.13632608]
[1609850919776,0.10491,31844.0,31842.0,0.13632608]
[1609850923180,0.10092,31851.0,31842.0,0.13632608]
[1609850923381,0.13632608,31857.0,31842.0,0.13632608]
[1609850924382,0.13632608,31857.0,31856.0,0.13632608]
[1609850925984,0.13632608,31857.0,31839.0,4.4789]
[1609850926184,0.13632608,31857.0,31834.0,0.12511]
[1609850926484,5.03825,31850.0,31830.0,4.9032]
[1609850927786,0.13632608,31848.0,31830.0,4.9032]
[1609850928386,0.13632608,31848.0,31846.0,0.13632608]
[1609850929888,0.12745,31850.0,31846.0,0.13632608]
[1609850931693,0.13632608,31853.0,31846.0,0.13632608]
[1609850932296,0.13632608,31853.0,31852.0,0.13632608]
[1609850934297,0.13632608,31853.0,31852.0,4.62652608]
[1609850936398,0.13632608,31853.0,31852.0,0.13632608]
[1609850936597,4.22859,31861.0,31852.0,0.13632608]
[1609850936998,0.11829,31861.0,31852.0,0.13632608]
[1609850937197,0.2824,31868.0,31852.0,0.13632608]
[1609850937500,0.68221987,31878.0,31852.0,0.13632608]
[1609850937697,0.2806,31877.0,31860.0,4.3487]
[1609850939097,0.2806,31877.0,31847.0,0.12661]
[1609850939299,0.38996,31877.0,31863.0,3.879]
[1609850939698,0.38996,31877.0,31847.0,0.12661]
[1609850940299,0.38996,31877.0,31866.0,0.13632608]
[1609850940499,0.38996,31877.0,31869.0,4.9217]
[1609850941801,0.38996,31877.0,31847.0,0.12661]
[1609850942001,4.7192,31872.0,31849.0,4.6492]
[1609850942402,4.7192,31872.0,31857.0,0.13632608]
[1609850944104,0.38996,31877.0,31857.0,0.13632608]
[1609850944305,0.38996,31877.0,31863.0,0.13632608]
[1609850944506,0.38996,31877.0,31863.0,4.34662608]
[1609850944908,0.38996,31877.0,31863.0,4.2103]
[1609850945709,0.68750762,31874.0,31863.0,4.2103]
[1609850946409,0.13632608,31864.0,31863.0,4.2103]
[1609850946609,0.26048608,31864.0,31863.0,4.2103]
[1609850948014,0.26048608,31864.0,31856.0,0.13632608]
[1609850948514,0.26048608,31864.0,31862.0,0.13632608]
[1609850949614,0.12416,31864.0,31863.0,4.3166]
[1609850952216,0.13632608,31871.0,31863.0,4.3166]
[1609850952416,0.13632608,31871.0,31869.0,0.13632608]
[1609850952816,0.13632608,31871.0,31859.0,5.2178]
[1609850954416,0.13632608,31862.0,31858.0,0.13632608]
[1609850954817,0.25549608,31862.0,31861.0,4.4213]
[1609850955721,0.11917,31862.0,31861.0,4.4213]
[1609850957122,0.11917,31862.0,31858.0,0.13632608]
[1609850959924,0.11917,31862.0,31861.0,4.2881]
[1609850960123,0.38996,31877.0,31861.0,4.2881]
[1609850960524,0.13632608,31867.0,31866.0,0.13632608]
[1609850961024,0.28655608,31867.0,31866.0,0.13632608]
[1609850961425,0.28655608,31867.0,31864.0,5.0466]
[1609850961624,0.28655608,31867.0,31846.0,2.04981556]
[1609850961825,0.28655608,31867.0,31852.0,4.751]
[1609850962427,0.13632608,31862.0,31858.0,0.13632608]
[1609850962628,0.13632608,31862.0,31846.0,2.04981556]
[1609850962827,4.1485,31858.0,31846.0,2.04981556]
[1609850964427,0.13632608,31847.0,31846.0,2.18614164]
[1609850965729,0.13632608,31847.0,31846.0,0.13632608]
[1609850966631,0.09566,31851.0,31846.0,0.13632608]
[1609850968631,0.13632608,31847.0,31846.0,0.13632608]
[1609850973339,5.14152608,31847.0,31846.0,0.13632608]
[1609850973540,0.13632608,31847.0,31846.0,0.13632608]
[1609850973740,3.8584,31834.0,31833.0,2.06327036]
[1609850973938,0.13632608,31847.0,31833.0,2.06327036]
[1609850974139,0.13637,31840.0,31833.0,2.06327036]
[1609850974343,3.568,31831.0,31830.0,2.0650959]
[1609850974540,0.13632608,31831.0,31830.0,2.0650959]
[1609850975144,0.13632608,31831.0,31827.0,0.13632608]
[1609850976143,0.13632608,31831.0,31824.0,0.09598]
[1609850976345,0.13632608,31831.0,31823.0,2.07056521]
[1609850976544,0.13632608,31824.0,31823.0,2.07056521]
[1609850976744,0.13632608,31824.0,31821.0,2.20803365]
[1609850977246,0.13632608,31824.0,31821.0,0.13632608]
[1609850990768,0.11477,31833.0,31821.0,0.13632608]
[1609850990969,5.0434,31838.0,31821.0,0.13632608]
[1609850991369,0.2869,31839.0,31821.0,0.13632608]
[1609850991569,0.2869,31839.0,31825.0,4.6061]
[1609850992669,0.2869,31839.0,31838.0,0.13632608]
[1609850992870,0.13637,31840.0,31838.0,0.13632608]
[1609850993070,0.2727,31849.0,31838.0,0.13632608]
[1609850994571,0.13632608,31839.0,31838.0,0.13632608]
[1609850998475,0.09694,31840.0,31838.0,0.13632608]
[1609850998677,0.09694,31840.0,31838.0,4.16082608]
[1609850999083,0.13632608,31850.0,31838.0,4.16082608]
[1609850999476,4.31750106,31862.0,31838.0,4.16082608]
[1609850999878,4.2983,31862.0,31838.0,4.16082608]
[1609851000077,0.2845,31862.0,31838.0,0.13632608]
[1609851000276,0.2845,31862.0,31846.0,4.0097]
[1609851000779,0.2845,31862.0,31856.0,0.13632608]
[1609851002681,0.13632608,31857.0,31856.0,0.13632608]
[1609851002881,0.2845,31862.0,31856.0,0.13632608]
[1609851003084,0.0981,31858.0,31856.0,0.13632608]
[1609851003481,4.4981,31857.0,31856.0,0.13632608]
[1609851004182,0.0981,31858.0,31856.0,0.13632608]
[1609851004382,0.0981,31858.0,31845.0,4.8121]
[1609851004784,0.13632608,31846.0,31845.0,4.8121]
[1609851005184,0.13632608,31846.0,31843.0,0.13632608]
[1609851005385,0.13632608,31846.0,31844.0,4.9407]
[1609851007588,0.10801,31850.0,31844.0,4.9407]
[1609851008688,0.10801,31850.0,31849.0,0.13632608]
[1609851009494,3.76601,31850.0,31849.0,0.13632608]
[1609851010095,3.76601,31850.0,31827.0,2.14515698]
[1609851010096,0.10801,31850.0,31827.0,2.05135698]
[1609851010295,4.2802,31828.0,31827.0,2.05135698]
[1609851010500,0.13164,31829.0,31827.0,2.05135698]
[1609851010696,0.13632608,31828.0,31827.0,2.05135698]
[1609851010896,0.13632608,31828.0,31827.0,1.98205698]
[1609851011095,0.13632608,31828.0,31827.0,0.81065698]
[1609851011496,0.23142608,31828.0,31827.0,0.71555698]
[1609851011698,0.23142608,31828.0,31827.0,0.58685698]
[1609851011896,0.23142608,31828.0,31827.0,0.43665698]
[1609851012097,0.23142608,31828.0,31827.0,0.37825698]
[1609851012498,0.23142608,31828.0,31827.0,0.31475698]
[1609851012698,0.23142608,31828.0,31824.0,2.23784398]
[1609851012899,4.4703,31825.0,31824.0,2.23784398]
[1609851013099,4.4703,31825.0,31824.0,1.75194398]
[1609851013300,4.4703,31825.0,31824.0,1.16754398]
[1609851013499,4.4703,31825.0,31824.0,0.76344398]
[1609851013698,4.4703,31825.0,31824.0,0.59144398]
[1609851013900,4.4703,31825.0,31824.0,0.51344398]
[1609851014100,4.5642,31825.0,31824.0,0.43174398]
[1609851014500,4.5642,31825.0,31824.0,0.41594398]
[1609851014901,4.5642,31825.0,31811.0,2.4296112]
[1609851015501,4.4703,31825.0,31811.0,2.4296112]
[1609851016403,0.0948,31824.0,31811.0,2.4296112]
[1609851016804,0.13632608,31812.0,31802.0,4.6957]
[1609851017005,0.22799608,31812.0,31802.0,4.6957]
[1609851018706,0.13632608,31803.0,31802.0,4.6957]
[1609851018905,0.24716608,31803.0,31798.0,0.13632608]
[1609851020705,0.13632608,31799.0,31798.0,0.13632608]
[1609851023809,0.11084,31803.0,31798.0,0.13632608]
[1609851024008,0.09167,31812.0,31798.0,0.13632608]
[1609851024409,0.00398515,31822.0,31798.0,0.13632608]
[1609851024709,0.00398515,31822.0,31811.0,0.13632608]
[1609851024912,0.01366237,31824.0,31811.0,0.13632608]
[1609851026213,0.10916237,31824.0,31787.0,0.11928]
[1609851026413,4.4818,31814.0,31794.0,3.8222]
[1609851026613,4.61208,31814.0,31794.0,3.8222]
[1609851026814,4.61208,31814.0,31804.0,0.13632608]
[1609851027314,4.61208,31814.0,31794.0,3.8222]
[1609851028714,4.61208,31814.0,31799.0,0.13632608]
[1609851030616,0.13028,31814.0,31799.0,0.13632608]
[1609851030815,0.13632608,31800.0,31799.0,0.13632608]
[1609851031016,0.13632608,31800.0,31799.0,4.40852608]
[1609851032417,0.09743608,31806.0,31799.0,4.40852608]
[1609851032617,0.13028,31814.0,31799.0,4.40852608]
[1609851032817,0.00397978,31822.0,31813.0,0.13632608]
[1609851033017,0.00397978,31822.0,31816.0,4.3405]
[1609851033818,0.01363663,31828.0,31813.0,0.13632608]
[1609851034718,0.01363663,31828.0,31824.0,0.13632608]
[1609851035319,0.13164,31829.0,31824.0,0.13632608]
[1609851035619,0.18107686,31839.0,31824.0,0.13632608]
[1609851035820,0.1771,31839.0,31824.0,0.13632608]
[1609851036721,0.13632608,31825.0,31824.0,0.13632608]
[1609851037122,0.28197608,31825.0,31824.0,0.13632608]
[1609851038622,0.14565,31825.0,31824.0,0.13632608]
[1609851042125,0.13632608,31831.0,31824.0,0.13632608]
[1609851042722,0.13632608,31831.0,31830.0,0.13632608]
[1609851046028,0.13632608,31831.0,31830.0,3.69112608]
[1609851048632,0.13632608,31831.0,31830.0,0.13632608]
[1609851050533,0.12072608,31831.0,31830.0,0.13632608]
[1609851050934,0.23562608,31831.0,31830.0,0.13632608]
[1609851051135,0.23562608,31831.0,31830.0,5.13052608]
[1609851051336,0.1149,31831.0,31830.0,5.13052608]
[1609851052742,0.09269,31837.0,31830.0,5.13052608]
[1609851054738,0.09269,31837.0,31836.0,0.13632608]
[1609851055841,0.09269,31837.0,31836.0,0.84722608]
[1609851056241,0.08449,31837.0,31836.0,0.84722608]
[1609851057645,0.13632608,31848.0,31836.0,0.84722608]
[1609851058843,0.13632608,31848.0,31847.0,0.13632608]
[1609851059246,4.71772608,31848.0,31847.0,0.13632608]
[1609851061045,0.13632608,31848.0,31847.0,4.31112608]
[1609851062747,0.13632608,31848.0,31847.0,0.13632608]
[1609851062945,0.13632608,31848.0,31823.0,0.10298]
[1609851063145,0.13632608,31848.0,31809.0,2.05846213]
[1609851063345,4.652,31827.0,31809.0,2.05846213]
[1609851063546,0.12728,31831.0,31809.0,2.05846213]
[1609851063747,4.1203,31813.0,31810.0,2.05801162]
[1609851064347,4.1203,31813.0,31803.0,0.2989]
[1609851064747,0.14886,31816.0,31803.0,0.2989]
[1609851064947,0.14886,31816.0,31812.0,0.13632608]
[1609851066946,0.15027,31823.0,31812.0,0.13632608]
[1609851068851,0.13632608,31824.0,31822.0,0.13632608]
[1609851071053,0.13632608,31824.0,31804.0,1.13445]
[1609851071253,0.25941608,31824.0,31804.0,1.0]
[1609851072957,0.86109,31824.0,31813.0,0.13632608]
[1609851074958,0.13632608,31814.0,31813.0,0.13632608]
[1609851075157,0.25974608,31814.0,31813.0,0.13632608]
[1609851075358,4.54764608,31814.0,31804.0,1.0]
[1609851075959,0.25974608,31814.0,31804.0,1.0]
[1609851076558,0.25974608,31814.0,31804.0,5.1611]
[1609851076960,0.12342,31814.0,31807.0,0.13632608]
[1609851077160,0.12342,31814.0,31804.0,5.1611]
[1609851078862,0.13632608,31805.0,31804.0,1.0]
[1609851081563,0.12342,31814.0,31804.0,1.0]
[1609851081763,0.01371223,31818.0,31804.0,1.0]
[1609851082864,0.01371223,31818.0,31817.0,0.13632608]
[1609851084565,0.02894516,31818.0,31817.0,0.13632608]
[1609851084965,0.16527124,31818.0,31804.0,1.0]
[1609851085166,0.13632608,31818.0,31804.0,1.0]
[1609851085364,5.008,31810.0,31804.0,1.0]
[1609851086869,5.008,31810.0,31808.0,0.13632608]
[1609851089369,0.11488,31813.0,31808.0,0.13632608]
[1609851090370,0.13632608,31815.0,31808.0,0.13632608]
[1609851090871,0.13632608,31815.0,31814.0,0.13632608]
[1609851091273,0.13632608,31815.0,31804.0,1.0]
[1609851091473,0.23781608,31815.0,31804.0,1.0]
[1609851091873,4.8546,31809.0,31804.0,1.0]
[1609851092873,4.8546,31809.0,31808.0,0.13632608]
[1609851094675,0.10149,31815.0,31808.0,0.13632608]
[1609851094874,0.13632608,31809.0,31808.0,0.13632608]
[1609851098679,0.10149,31815.0,31808.0,0.13632608]
[1609851098880,0.00400055,31817.0,31814.0,0.13632608]
[1609851099579,4.43649927,31818.0,31814.0,0.13632608]
[1609851100081,4.4325,31818.0,31814.0,0.13632608]
[1609851100884,0.13632608,31815.0,31814.0,0.13632608]
[1609851101079,0.25724608,31815.0,31814.0,0.13632608]
[1609851103483,0.99214608,31815.0,31804.0,1.0]
[1609851104884,0.85582,31815.0,31806.0,0.13632608]
[1609851106087,0.12092,31815.0,31806.0,0.13632608]
[1609851106288,0.12092,31815.0,31808.0,4.321]
[1609851106488,0.00399855,31817.0,31808.0,4.321]
[1609851106891,0.13632608,31809.0,31808.0,4.321]
[1609851107291,0.24502608,31809.0,31808.0,4.321]
[1609851108591,0.24502608,31809.0,31806.0,0.13632608]
[1609851109595,0.1087,31809.0,31806.0,0.13632608]
[1609851112302,0.13632608,31813.0,31806.0,0.13632608]
[1609851112501,0.10703,31812.0,31806.0,0.13632608]
[1609851113001,0.10703,31812.0,31811.0,0.13632608]
[1609851117805,3.83302608,31817.0,31811.0,0.13632608]
[1609851119106,3.83302608,31817.0,31816.0,0.13632608]
[1609851119306,0.13632608,31817.0,31816.0,0.13632608]
[1609851119707,3.98942608,31817.0,31816.0,0.13632608]
[1609851124614,0.27789608,31817.0,31816.0,0.13632608]
[1609851124815,0.14157,31817.0,31816.0,4.14192608]
[1609851125213,0.14157,31817.0,31816.0,4.23722608]
[1609851125414,0.13687,31817.0,31816.0,4.68412608]
[1609851126214,0.69480076,31824.0,31816.0,4.68412608]
[1609851126416,0.69480076,31824.0,31816.0,4.77872608]